fUST/lending_fUST_20251226
["ID","MTS","AMOUNT","RATE_DAILY","PERIOD"]
[399836423,1766722237904,-500.0,0.0001113,2]
[399836424,1766722237914,-500.0,0.00011392,2]
[399836425,1766722237923,-500.0,0.00011716,2]
[399836426,1766722237933,-500.0,0.00011762,2]
[399836427,1766722237943,-500.0,0.00011933,2]
[399836428,1766722237952,-229.94,0.00012,14]
[399836429,1766722237965,-177.0,0.00012004,2]
[399836430,1766722237975,-420.0,0.00012016,2]
[399836431,1766722237985,-300.0,0.00012019,2]
[399836432,1766722237994,-300.0,0.00012019,2]
[399836433,1766722238004,-300.0,0.00012019,2]
[399836434,1766722238013,-300.0,0.00012019,2]
[399836435,1766722238023,-300.0,0.00012019,2]
[399836436,1766722238033,-300.0,0.00012019,2]
[399836437,1766722238043,-300.0,0.00012019,2]
[399836438,1766722238055,-300.0,0.00012019,2]
[399836439,1766722238064,-300.0,0.00012019,2]
[399836440,1766722238074,-300.0,0.00012019,2]
[399836441,1766722238084,-300.0,0.00012019,2]
[399836442,1766722238094,-300.0,0.00012019,2]
[399836443,1766722238104,-300.0,0.00012019,2]
[399836444,1766722238114,-300.0,0.00012019,2]
[399836445,1766722238124,-300.0,0.00012019,2]
[399836446,1766722238134,-500.0,0.00012332,2]
[399836447,1766722238144,-500.0,0.00012981,2]
[399836448,1766722238154,-587.0,0.00013205,2]
[399836449,1766722238164,-500.0,0.00013665,2]
[399836450,1766722238175,-204.0,0.00014004,2]
[399836451,1766722238185,-500.0,0.00014348,2]
[399836452,1766722238196,-262.0,0.00014512,2]
[399836453,1766722238207,-500.0,0.00014514,2]
[399836454,1766722238217,-500.0,0.00015065,2]
[399836455,1766722238227,-500.0,0.00015219,2]
[399836456,1766722238239,-212.16404779,0.000154,2]
[399836457,1766722238248,-500.0,0.00015818,2]
[399836458,1766722238258,-231.0,0.00016004,2]
[399836459,1766722238267,-600.0,0.00016135,2]
[399836460,1766722238277,-500.0,0.00016609,2]
[399836461,1766722238290,-500.0,0.00017207,2]
[399836462,1766722238300,-500.0,0.0001744,2]
[399836463,1766722238310,-327.27792197,0.00017467,2]
[399836464,1766722238320,-514.96946644,0.00017566,2]
[399836465,1766722238331,-1363.0,0.00017567,2]
[399836466,1766722238341,-2161.0,0.00017567,2]
[399836467,1766722238351,-633.0,0.00017567,2]
[399836468,1766722238364,-500.0,0.00017654,2]
[399836469,1766722238375,-500.0,0.00017736,2]
[399836470,1766722238389,-373.26595564,0.00017736,2]
[399836471,1766722238398,-343.63019955,0.00017736,2]
[399836472,1766722238408,-275.87500086,0.00017736,2]
[399836473,1766722238418,-2054.0436788,0.00017737,2]
[399836474,1766722238428,-720.0,0.00017748,2]
[399836475,1766722238439,-500.0,0.00017898,2]
[399836476,1766722238448,-500.0,0.00017898,2]
[399836477,1766722238458,-151.0,0.00017898,2]
[399836478,1766722238468,-514.84070869,0.00017898,2]
[399836479,1766722238478,-530.87678987,0.00017898,2]
[399836480,1766722238488,-151.0,0.00017898,2]
[399836481,1766722238498,-500.0,0.00017898,2]
[399836482,1766722238508,-152.02572065,0.00017898,2]
[399836483,1766722238517,-151.0,0.00017898,2]
[399836484,1766722238527,-188.63160256,0.00017898,2]
[399836485,1766722238537,-500.0,0.00017898,2]
[399836486,1766722238547,-151.0,0.00017898,2]
[399836487,1766722238557,-500.0,0.00017898,2]
[399836488,1766722238567,-151.0,0.00017898,2]
[399836489,1766722238577,-2312.83697232,0.00017898,2]
[399836490,1766722238587,-500.0,0.00017898,2]
[399836491,1766722238597,-259.08590466,0.00017898,2]
[399836492,1766722238607,-151.0,0.00017898,2]
[399836493,1766722238617,-500.0,0.00017898,2]
[399836494,1766722238629,-151.0,0.00017898,2]
[399836495,1766722238648,-507.12910205,0.00017898,2]
[399836496,1766722238663,-151.0,0.00017898,2]
[399836497,1766722238673,-151.0,0.00017898,2]
[399836498,1766722238684,-151.0,0.00017898,2]
[399836499,1766722238694,-151.0,0.00017898,2]
[399836500,1766722238704,-151.0,0.00017898,2]
[399836501,1766722238714,-151.0,0.00017898,2]
[399836502,1766722238724,-151.0,0.00017898,2]
[399836503,1766722238735,-264.47690625,0.00017898,2]
[399836504,1766722238745,-500.0,0.00017898,2]
[399836505,1766722238755,-151.68912477,0.00017898,2]
[399836506,1766722238766,-520.22733536,0.00017898,2]
[399836507,1766722238775,-151.10534574,0.00017898,2]
[399836508,1766722238786,-254.8825265,0.00017898,2]
[399836509,1766722238796,-160.0,0.00017937,2]
[399836510,1766722238806,-258.0,0.00018004,2]
[399836511,1766722238817,-500.0,0.00018072,2]
[399836512,1766722238827,-165.90777066,0.00018072,2]
[399836513,1766722238838,-500.0,0.00018209,2]
[399836514,1766722238849,-500.0,0.00018346,2]
[399836515,1766722238859,-347.70267801,0.00018446,2]
[399836516,1766722238869,-500.0,0.00018483,2]
[399836517,1766722238879,-260.0,0.00018485,2]
[399836518,1766722238890,-327.27792195,0.00018564,2]
[399836519,1766722238900,-500.0,0.0001862,2]
[399836520,1766722238909,-173.70145308,0.00018757,2]
[399836521,1766722238919,-171.395,0.00018926,2]
[399836522,1766722238930,-182.73074953,0.00018926,2]
[399836523,1766722238940,-360.0,0.00019033,2]
[399836524,1766722238956,-243.19084472,0.00019096,3]
[399836525,1766722238966,-362.86972871,0.00019216,5]
[399836526,1766722238978,-168.0,0.00019299,2]
[399836527,1766722238989,-864.0,0.00019523,2]
[399836528,1766722239004,-460.0,0.00019581,2]
[399836529,1766722239014,-327.27792195,0.0001966,2]
[399836530,1766722239024,-900.0,0.00019726,2]
[399836531,1766722239035,-285.0,0.00020004,2]
[399836532,1766722239045,-168.0,0.00020119,2]
[399836533,1766722239055,-560.0,0.00020129,2]
[399836534,1766722239065,-1546.88637372,0.00020274,2]
[399836535,1766722239075,-168.0,0.0002051,2]
[399836536,1766722239087,-960.775,0.00020567,2]
[399836537,1766722239097,-2161.0,0.00020567,2]
[399836538,1766722239107,-633.0,0.00020567,2]
[399836539,1766722239117,-660.0,0.00020677,2]
[399836540,1766722239127,-500.0,0.00020748,2]
[399836541,1766722239137,-500.0,0.00020748,2]
[399836542,1766722239152,-159.63944667,0.00020748,2]
[399836543,1766722239162,-327.27792195,0.00020757,2]
[399836544,1766722239173,-500.0,0.00020885,2]
[399836545,1766722239183,-550.97195858,0.00020885,2]
[399836546,1766722239194,-500.0,0.00021022,2]
[399836547,1766722239205,-214.98671917,0.00021022,2]
[399836548,1766722239215,-500.0,0.00021159,2]
[399836549,1766722239225,-500.0,0.00021185,7]
[399836550,1766722239236,-341.44563044,0.00021192,2]
[399836551,1766722239247,-760.0,0.00021225,2]
[399836552,1766722239257,-500.0,0.00021296,2]
[399836553,1766722239267,-500.0,0.00021404,2]
[399836554,1766722239277,-500.0,0.00021433,2]
[399836555,1766722239289,-1000.0,0.00021475,10]
[399836556,1766722239299,-500.0,0.0002157,2]
[399836557,1766722239312,-212.16404779,0.00021657,56]
[399836558,1766722239323,-324.56170115,0.00021707,2]
[399836559,1766722239335,-500.0,0.00021736,2]
[399836560,1766722239347,-860.0,0.00021772,2]
[399836561,1766722239358,-500.0,0.00021832,2]
[399836562,1766722239371,-417.36486672,0.00021832,2]
[399836563,1766722239382,-582.26237281,0.00021832,2]
[399836565,1766722239393,-500.0,0.00021832,2]
[399836566,1766722239404,-476.29769526,0.00021832,2]
[399836567,1766722239415,-500.0,0.00021832,2]
[399836568,1766722239429,-165.76046166,0.00021853,2]
[399836569,1766722239443,-109234.35145244,0.00021853,2]
[399836570,1766722239453,-327.27792195,0.00021853,2]
[399836571,1766722239463,-151.0,0.000219,3]
[399836572,1766722239475,-151.0,0.000219,4]
[399836573,1766722239485,-151.0,0.000219,4]
[399836574,1766722239496,-151.0,0.000219,4]
[399836575,1766722239507,-151.0,0.000219,3]
[399836576,1766722239517,-151.0,0.000219,4]
[399836577,1766722239528,-151.0,0.000219,3]
[399836578,1766722239539,-151.0,0.000219,3]
[399836581,1766722239552,-151.0,0.000219,3]
[399836583,1766722239564,-151.0,0.000219,4]
[399836585,1766722239576,-151.0,0.000219,4]
[399836587,1766722239587,-151.0,0.000219,4]
[399836589,1766722239598,-151.0,0.000219,4]
[399836590,1766722239609,-151.0,0.000219,4]
[399836591,1766722239620,-151.0,0.000219,3]
[399836592,1766722239631,-579.97,0.00021923,3]
[399836593,1766722239642,-386.63,0.00021933,3]
[399836594,1766722239653,-193.31,0.00021933,3]
[399836595,1766722239668,-151.0,0.00021933,2]
[399836596,1766722239679,-151.0,0.00021933,2]
[399836598,1766722239690,-151.0,0.00021933,2]
[399836599,1766722239701,-151.0,0.00021933,2]
[399836600,1766722239712,-151.0,0.00021933,2]
[399836601,1766722239723,-151.0,0.00021933,2]
[399836602,1766722239734,-151.0,0.00021933,2]
[399836603,1766722239744,-151.0,0.00021933,2]
[399836604,1766722239754,-151.0,0.00021943,2]
[399836605,1766722239765,-151.0,0.00021943,2]
[399836606,1766722239776,-153.156243,0.00021943,2]
[399836607,1766722239786,-151.0,0.00021943,2]
[399836608,1766722239797,-423914.24958599,0.00021953,2]
[399836609,1766722239814,-2989.41851608,0.00021953,2]
[399836610,1766722239827,-4039.31908305,0.00021953,2]
[399836612,1766722239839,-482.75312191,0.00021953,2]
[399836614,1766722239851,-134799.54732291,0.00021953,2]
[399836616,1766722239864,-5257.04851778,0.00021953,2]
[399836744,1766722241164,-3e-08,0.00021953,2]
[399836820,1766722246188,-5000.0,0.00021733,2]
[399836821,1766722246198,-82951.2,0.00021943,10]
[399836822,1766722246210,-428517.66385225,0.00021953,2]
[399836823,1766722246220,-151.0,0.00021953,2]
[399836824,1766722246231,-151.0,0.00021953,2]
[399836825,1766722246242,-279.301448,0.00021953,2]
[399836826,1766722246252,-151.0,0.00021953,2]
[399836827,1766722246263,-151.0,0.00021953,2]
[399836828,1766722246273,-151.0,0.00021953,2]
[399836829,1766722246285,-166.866887,0.00021953,2]
[399836830,1766722246300,-2011.83971345,0.00021962,2]
[399836831,1766722246312,-151.0,0.00022,4]
[399836832,1766722246323,-312.0,0.00022004,2]
[399836833,1766722246335,-21164.8838024,0.00022053,2]
[399836834,1766722246346,-500.0,0.00022069,2]
[399836835,1766722246356,-237.55884793,0.00022279,2]
[399836836,1766722246368,-165.76046166,0.00022303,2]
[399836837,1766722246379,-254.40352087,0.0002232,2]
[399836838,1766722246389,-614.60213479,0.00022331,2]
[399836839,1766722246400,-394.03564212,0.00022331,2]
[399836840,1766722246410,-151.0,0.00022372,2]
[399836841,1766722246422,-151.0,0.00022372,2]
[399836842,1766722246433,-1586.92637845,0.00022372,2]
[399836843,1766722246444,-430.50544589,0.00022378,30]
[399836844,1766722246455,-2011.83971345,0.00022406,2]
[399836845,1766722246465,-160.0,0.00022415,3]
[399836846,1766722246475,-160.0,0.00022415,5]
[399836847,1766722246486,-151.0,0.00022452,2]
[399836848,1766722246496,-151.0,0.00022452,2]
[399836849,1766722246507,-151.0,0.00022452,2]
[399836850,1766722246518,-300.0,0.00022466,2]
[399836851,1766722246530,-501.0,0.00022477,120]
[399836852,1766722246540,-215.30272295,0.0002249,30]
[399836853,1766722246551,-267.02204813,0.000225,7]
[399836854,1766722246564,-2011.83971347,0.00022513,2]
[399836855,1766722246574,-215.30272295,0.00022601,30]
[399836856,1766722246585,-215.30272295,0.00022713,30]
[399836857,1766722246596,-165.76046166,0.00022752,2]
[399836858,1766722246607,-215.30272295,0.00022824,30]
[399836859,1766722246618,-1808.2093343,0.00022829,2]
[399836860,1766722246629,-215.30272295,0.00022936,30]
[399836861,1766722246639,-7880.0,0.00023,2]
[399836862,1766722246651,-1024.0,0.00023,2]
[399836863,1766722246662,-450.0,0.00023014,2]
[399836864,1766722246673,-215.30272295,0.00023048,30]
[399836865,1766722246684,-215.30272295,0.00023159,30]
[399836866,1766722246695,-200.0,0.0002317,120]
[399836867,1766722246706,-165.76046166,0.00023202,2]
[399836868,1766722246717,-215.30272295,0.00023271,30]
[399836869,1766722246728,-773.26,0.00023303,3]
[399836870,1766722246738,-386.62,0.00023303,3]
[399836871,1766722246748,-215.30272295,0.00023383,30]
[399836872,1766722246759,-215.30272295,0.00023494,30]
[399836873,1766722246770,-600.0,0.00023562,2]
[399836874,1766722246780,-2158.0,0.00023567,2]
[399836875,1766722246791,-633.0,0.00023567,2]
[399836876,1766722246802,-151.0,0.00023581,2]
[399836877,1766722246814,-151.0,0.00023581,2]
[399836878,1766722246826,-501.0,0.00023601,120]
[399836879,1766722246839,-215.30272295,0.00023606,30]
[399836880,1766722247090,-1000.0,0.00023623,10]
[399836881,1766722247101,-244.0,0.00023623,10]
[399836882,1766722247112,-302.35,0.0002364,7]
[399836883,1766722247122,-165.76046166,0.00023651,2]
[399836884,1766722247133,-4275.93679833,0.000237,14]
[399836885,1766722247147,-215.30272295,0.00023717,30]
[399836886,1766722247156,-151.0,0.00023829,2]
[399836887,1766722247166,-151.0,0.00023829,2]
[399836888,1766722247176,-151.0,0.00023829,2]
[399836889,1766722247186,-5000.0,0.00023829,2]
[399836890,1766722247195,-1291.71633767,0.00023829,2]
[399836891,1766722247205,-200.0,0.00023961,120]
[399836892,1766722247215,-1133.11309225,0.00024,30]
[399836893,1766722247226,-1732.51082476,0.00024,2]
[399836894,1766722247237,-464.85091367,0.00024,2]
[399836895,1766722247247,-1000.0,0.00024,24]
[399836896,1766722247257,-249.91676046,0.00024,60]
[399836897,1766722247266,-1016.0,0.00024,2]
[399836898,1766722247278,-339.0,0.00024004,2]
[399836899,1766722247289,-13809.64012647,0.00024042,2]
[399836900,1766722247301,-1000.0,0.000241,10]
[399836901,1766722247312,-165.76046166,0.00024101,2]
[399836902,1766722247322,-750.0,0.0002411,2]
[399836903,1766722247334,-151.0,0.00024117,2]
[399836904,1766722247343,-2400.0,0.0002414,2]
[399836905,1766722247353,-22037.08401569,0.00024142,2]
[399836906,1766722265234,-5000.0,0.00017558,2]
[399836907,1766722265270,-0.01,0.00017735,2]
[399836908,1766722265587,-299.99,0.00017735,2]
[399836909,1766722265616,-368.85764185,0.00017736,2]
[399836910,1766722265646,-500.0,0.00017736,2]
[399836911,1766722265676,-271.91346408,0.00017736,2]
[399836912,1766722265705,-500.0,0.00017736,2]
[399836913,1766722265734,-500.0,0.00017736,2]
[399836914,1766722265764,-500.0,0.00017736,2]
[399836915,1766722265793,-500.0,0.00017736,2]
[399836916,1766722265821,-500.0,0.00017736,2]
[399836917,1766722265849,-416.0,0.00018809,2]
[399836918,1766722265877,-420.0,0.00019356,2]
[399836919,1766722266013,-577.0,0.00021125,2]
[399836920,1766722266042,-416.0,0.00021809,2]
[399836921,1766722266167,-30.48778814,0.00024132,10]
[399836922,1766722266180,-416.0,0.00024132,10]
[399836923,1766722266194,-8014.01,0.00024132,10]
[399836924,1766722266222,-10000.01,0.00024132,10]
[399836925,1766722266246,-10000.01,0.00024132,10]
[399836926,1766722266260,-10000.01,0.00024132,10]
[399836927,1766722266327,-10000.01,0.00024132,10]
[399836928,1766722266435,-10000.01,0.00024132,10]
[399836929,1766722266543,-10000.01,0.00024132,10]
[399836930,1766722266786,-665.44221186,0.00024132,10]
[399836931,1766722266820,-8669.12557628,0.00024132,10]
[399836932,1766722266843,-10000.01,0.00024132,10]
[399836933,1766722266949,-10000.01,0.00024132,10]
[399836934,1766722271389,-5000.0,0.00023891,2]
[399836935,1766722271423,-0.01,0.00024132,10]
[399836936,1766722271555,-10000.01,0.00024132,10]
[399836937,1766722277611,-1475.43020256,0.00024042,2]
[399836938,1766722277635,-7049.14959488,0.00024042,2]
[399836939,1766722277809,-10000.01,0.00024132,10]
[399836940,1766722278039,-1064.18557628,0.00024132,10]
[399836941,1766722278080,-7871.63884744,0.00024132,10]
[399836942,1766722278191,-10000.01,0.00024132,10]
[399836943,1766722278387,-5000.0,0.00023891,2]
[399836944,1766722278419,-0.01,0.00024132,10]
[399836945,1766722278549,-10000.01,0.00024132,10]
[399836946,1766722278672,-10000.01,0.00024132,10]
[399836947,1766722278794,-10000.01,0.00024132,10]
[399836948,1766722278927,-1995.9,0.00024132,10]
[399836949,1766722278950,-6008.21,0.00024132,10]
[399836950,1766722279027,-10000.01,0.00024142,2]
[399836951,1766722279163,-10000.01,0.00024142,2]
[399836953,1766722507955,-632.67057448,8.336e-05,2]
[399836954,1766722510738,-261.12381645,8.336e-05,2]
[399836955,1766722514017,-367.49810174,8.336e-05,2]
[399836956,1766722516356,-251.47365391,8.336e-05,2]
[399836957,1766722517951,-235.1273795,8.336e-05,2]
[399836958,1766722520729,-300.0,8.336e-05,2]
[399836959,1766722526086,-442.22031156,8.336e-05,2]
[399836960,1766722528860,-169.33706153,8.336e-05,2]
[399836961,1766722530510,-310.48744673,8.336e-05,2]
[399836962,1766722532304,-285.22315071,8.336e-05,2]
[399836963,1766722534705,-668.24084154,8.336e-05,2]
[399836964,1766722536216,-311.69478399,8.336e-05,2]
[399836965,1766722541302,-201.64561124,8.336e-05,2]
[399836966,1766722543435,-160.52,8.053e-05,2]
[399836967,1766722543461,-46.17089202,8.336e-05,2]
[399836968,1766722545149,-517.0863746,8.336e-05,2]
[399836969,1766722545170,-470.34298527,8.42e-05,2]
[399836970,1766722549019,-300.0,8.42e-05,2]
[399836971,1766722551984,-219.25225268,8.336e-05,2]
[399836972,1766722556068,-377.35054331,8.336e-05,2]
[399836973,1766722559087,-171.12242898,8.336e-05,2]
[399836974,1766722560757,-275.09166051,8.336e-05,2]
[399836975,1766722563025,-431.44154948,8.336e-05,2]
[399836976,1766722566543,-235.1273795,8.336e-05,2]
[399836977,1766722572674,-300.0,8.336e-05,2]
[399836978,1766722574324,-869.7160594,8.336e-05,2]
[399836979,1766722578942,-226.00278585,8.336e-05,2]
[399836980,1766722615492,-163.04,7.974e-05,2]
[399836981,1766722696788,-150.59,8.04e-05,2]
[399836982,1766722733615,-444.43976229,8.253e-05,2]
[399836983,1766722736644,-229.07904625,8.253e-05,2]
[399836984,1766722738847,-184.68304335,8.253e-05,2]
[399836985,1766722741061,-299.4351489,8.253e-05,2]
[399836986,1766722743301,-417.75946656,8.253e-05,2]
[399836987,1766722744918,-336.04128795,8.253e-05,2]
[399836988,1766722746765,-471.05942776,8.253e-05,2]
[399836989,1766722749521,-251.86944242,8.253e-05,2]
[399836990,1766722751202,-196.56190467,8.253e-05,2]
[399836991,1766722753492,-286.77014095,8.17e-05,2]
[399836992,1766722757475,-159.30123623,8.17e-05,2]
[399836993,1766722762419,-266.29517752,8.17e-05,2]
[399836994,1766722764007,-277.56125694,8.17e-05,2]
[399836995,1766722766873,-464.80215162,8.17e-05,2]
[399836996,1766722769297,-224.60521826,8.17e-05,2]
[399836997,1766722771732,-305.14911578,8.17e-05,2]
[399836998,1766722774703,-228.77305958,8.17e-05,2]
[399836999,1766722776220,-530.66189985,8.17e-05,2]
[399837000,1766722779406,-154.35356217,8.17e-05,2]
[399837001,1766722781059,-181.71698637,8.17e-05,2]
[399837002,1766722783541,-500.0,8.17e-05,2]
[399837003,1766722786396,-1000.0,8.17e-05,2]
[399837004,1766722788044,-420.01019473,8.17e-05,2]
[399837005,1766722788068,-579.98980527,8.253e-05,2]
[399837006,1766722790045,-1000.0,8.253e-05,2]
[399837007,1766722792198,-589.08166458,8.253e-05,2]
[399837008,1766722792222,-162.28,8.51e-05,2]
[399837009,1766722792243,-248.63833542,8.673e-05,2]
[399837010,1766722795964,-51.36166458,8.673e-05,2]
[399837011,1766722795988,-300.0,8.674e-05,2]
[399837012,1766722796012,-300.0,8.674e-05,2]
[399837013,1766722796034,-300.0,8.674e-05,2]
[399837014,1766722796057,-48.63833542,8.674e-05,2]
[399837015,1766722829135,-1000.0,8.5e-05,2]
[399837016,1766722831371,-1000.0,8.5e-05,2]
[399837017,1766722833745,-1000.0,8.5e-05,2]
[399837018,1766722836409,-1000.0,8.5e-05,2]
[399837019,1766722839064,-1000.0,8.5e-05,2]
[399837020,1766722841581,-161.18,8.51e-05,2]
[399837021,1766722841609,-838.82,8.586e-05,2]
[399837022,1766722844526,-1000.0,8.586e-05,2]
[399837023,1766722848215,-1000.0,8.586e-05,2]
[399837024,1766722906527,-1000.0,8.5e-05,2]
[399837025,1766722908632,-1000.0,8.5e-05,2]
[399837026,1766722910635,-1000.0,8.5e-05,2]
[399837027,1766722913224,-1000.0,8.5e-05,2]
[399837028,1766722915872,-1000.0,8.5e-05,2]
[399837029,1766722919044,-165.15,8.557e-05,2]
[399837030,1766722919066,-300.0,8.585e-05,2]
[399837031,1766722919087,-534.85,8.586e-05,2]
[399837032,1766722921812,-1000.0,8.586e-05,2]
[399837033,1766722961416,-1000.0,8.417e-05,2]
[399837034,1766722964251,-444.0653572,8.417e-05,2]
[399837035,1766722964275,-500.0,8.45e-05,2]
[399837036,1766722964298,-55.9346428,8.5e-05,2]
[399837038,1766722989676,-1000.0,8.5e-05,2]
[399837039,1766722991730,-1000.0,8.5e-05,2]
[399837040,1766723011491,-1000.0,8.415e-05,2]
[399837041,1766723013408,-1000.0,8.415e-05,2]
[399837042,1766723018052,-155.56,8.415e-05,2]
[399837043,1766723025633,173.97,7.782e-05,2]
[399837044,1766723033187,-208.76,8.301e-05,2]
[399837045,1766723033211,-791.24,8.415e-05,2]
[399837046,1766723035197,-1000.0,8.415e-05,2]
[399837047,1766723054783,-1000.0,8.415e-05,2]
[399837048,1766723056133,-53.2,8.415e-05,2]
[399837049,1766723056155,-946.8,8.5e-05,2]
[399837050,1766723075979,-1000.0,8.415e-05,2]
[399837051,1766723078122,-1000.0,8.415e-05,2]
[399837052,1766723102641,-170.94,7.957e-05,2]
[399837054,1766723131133,-1000.0,8.331e-05,2]
[399837055,1766723132528,-1000.0,8.331e-05,2]
[399837056,1766723134175,-475.71972049,8.331e-05,2]
[399837057,1766723134199,-524.28027951,8.415e-05,2]
[399837058,1766723165409,-1000.0,8.415e-05,2]
[399837059,1766723165794,178.67,7.281e-05,2]
[399837060,1766723166227,223.34,7.801e-05,2]
[399837061,1766723167355,-268.01,8.321e-05,2]
[399837062,1766723167378,-731.99,8.415e-05,2]
[399837063,1766723169122,-743.72972049,8.415e-05,2]
[399837072,1766723235980,177.29,7.06e-05,2]
[399837073,1766723236386,221.62,7.565e-05,2]
[399837074,1766723244945,-265.94,8.069e-05,2]
[399837078,1766723307740,179.31,7.799e-05,2]
[399837080,1766723323618,31968.55497595,0.00013,30]
[399837083,1766723378232,167.9,7.8e-05,2]
[399837084,1766723404816,-1400.0,8.237e-05,2]
[399837108,1766723431841,-3600.0,8.237e-05,2]
[399837110,1766723431851,-201.48,8.32e-05,2]
[399837112,1766723431862,-500.0,8.506e-05,2]
[399837114,1766723431872,-164.86035258,8.671e-05,2]
[399837116,1766723431885,-1035.13964742,8.671e-05,2]
[399837118,1766723431896,-300.0,8.671e-05,2]
[399837120,1766723431906,-1200.0,8.671e-05,2]
[399837123,1766723431917,-300.0,8.671e-05,2]
[399837125,1766723431927,-2434.16045866,8.674e-05,2]
[399837127,1766723431940,-2209.07558311,8.674e-05,2]
[399837129,1766723431953,-330.25242726,8.674e-05,2]
[399837132,1766723431965,-468.43298615,8.674e-05,2]
[399837134,1766723431978,-1051.2016312,8.674e-05,2]
[399837137,1766723431996,-469.81458415,8.674e-05,2]
[399837139,1766723432010,-647.53935503,8.674e-05,2]
[399837141,1766723432022,-235.06,8.84e-05,2]
[399837143,1766723432032,-300.0,8.844e-05,2]
[399837145,1766723432042,-300.0,8.844e-05,2]
[399837148,1766723432054,-300.0,8.844e-05,2]
[399837150,1766723432064,-300.0,8.844e-05,2]
[399837152,1766723432076,-300.0,8.844e-05,2]
[399837154,1766723432089,-300.0,8.844e-05,2]
[399837156,1766723432101,-300.0,8.844e-05,2]
[399837158,1766723432112,-300.0,8.844e-05,2]
[399837160,1766723432122,-300.0,8.844e-05,2]
[399837163,1766723432134,-300.0,8.844e-05,2]
[399837165,1766723432145,-300.0,8.844e-05,2]
[399837167,1766723432156,-300.0,8.844e-05,2]
[399837169,1766723432167,-300.0,8.844e-05,2]
[399837171,1766723432179,-300.0,8.844e-05,2]
[399837173,1766723432190,-300.0,8.844e-05,2]
[399837175,1766723432201,-600.0,9.02e-05,2]
[399837178,1766723432213,-500.0,9.352e-05,2]
[399837180,1766723432224,-268.64,9.36e-05,2]
[399837182,1766723432235,-1444.0653572,9.421e-05,2]
[399837184,1766723432246,-494.0,9.538e-05,2]
[399837186,1766723432257,-420.0,9.538e-05,2]
[399837188,1766723432268,-874.0,9.538e-05,2]
[399837190,1766723432279,-302.22,9.88e-05,2]
[399837192,1766723432290,-720.0,9.922e-05,2]
[399837194,1766723432301,-29822.91898742,0.0001,2]
[399837196,1766723432312,-335.8,0.000104,2]
[399837199,1766723432324,-1444.0653572,0.00010426,2]
[399837201,1766723432336,-177.0,0.00010452,2]
[399837203,1766723432349,-300.0,0.00010492,2]
[399837205,1766723432360,-864.0,0.00010914,2]
[399837207,1766723432371,-500.0,0.0001116,2]
[399837209,1766723432383,-1444.0653572,0.0001143,2]
[399837211,1766723432395,-1000.0,0.00012005,2]
[399837213,1766723432406,-204.0,0.00012452,2]
[399837215,1766723432417,-500.0,0.0001261,2]
[399837218,1766723432429,-7459.00732276,0.000129,2]
[399837220,1766723432440,-500.0,0.00012951,2]
[399837221,1766723432451,-500.0,0.00012951,2]
[399837223,1766723432462,-214.22487963,0.00012951,2]
[399837226,1766723432474,-246.63158951,0.00012951,2]
[399837228,1766723432489,-500.0,0.00012951,2]
[399837230,1766723432500,-251.44608171,0.00012951,2]
[399837232,1766723432511,-500.0,0.00012951,2]
[399837234,1766723432523,-500.0,0.00012951,2]
[399837237,1766723432535,-179.8548829,0.00012951,2]
[399837239,1766723432545,-500.0,0.00012951,2]
[399837242,1766723432914,-500.0,0.00012951,2]
[399837243,1766723432924,-500.0,0.00012951,2]
[399837244,1766723432934,-42010.85761226,0.00013,30]
[399837283,1766723438103,-821.60324963,0.00013,30]
[399837285,1766723438117,-2015.59755185,0.00013,30]
[399837287,1766723438130,-6025.88431498,0.00013,30]